Cogmind - Beta 16 @@@ ROGUE MODE // 2026.02.01 @ 21:15:35 Player: Megaknight51 Result: Destroyed by JS-YT9(R) with Subdweller Machine Gun Performance ------------- Evolutions (0) 0 Regions Visited (3) 600 Robots Destroyed (30) 150 Value Destroyed (767) 767 Prototype IDs (2) 40 Alien Tech Used (0) 0 Bonus (0) 0 TOTAL SCORE: 1557 Bonus ------- None Cogmind --------- Core Integrity 0/250 Matter 18/300 Energy 96/100 System Corruption 1% Temperature Cool (0) Movement Core (450) Ox8 Location -10/Subcaves Parts ------- > --- POWER (1) -------- (None) > --- PROPULSION (2) --- (None) > --- UTILITY (2) ------ Large Storage Unit Structural Scanner > --- WEAPON (2) ------- Autogun Autogun > --- INVENTORY (15) --- Improved Ion Engine Improved Ion Engine Improved Ion Engine Heat Sink Structural Scanner Structural Scanner Visual Processing Unit Hacking Suite EM Pulse Gun Peak State ------------ > --- POWER ------------ Light Nuclear Core > --- PROPULSION ------- Aluminum Leg Aluminum Leg > --- UTILITY ---------- Large Storage Unit Structural Scanner > --- WEAPON ----------- Light Cannon Light Cannon > --- INVENTORY -------- Ion Engine Light Ion Engine Light Ion Engine Light Nuclear Core Heat Sink Weight Redist. System Structural Scanner Structural Scanner Visual Processing Unit Improved Terrain Scanner EM Pulse Gun EM Pulse Gun Light Cannon Light Cannon [Rating: 11] Favorites ----------- Power Light Nuclear Core Engine Ion Engine Power Core Light Nuclear Core Propulsion Aluminum Leg Treads Light Treads Leg Aluminum Leg Utility Large Storage Unit Device Structural Scanner Storage Large Storage Unit Weapon Light Cannon Energy Gun Particle Gun Ballistic Gun Light Assault Rifle Ballistic Cannon Light Cannon Build | -11 -10 -10 -10 ------- Run | Yrd Mat Min Sub Slots Evolved . | . . . . Power . | . . . . Propulsion . | . . . . Utility . | . . . . Weapon . | . . . . Parts Attached 22 | 7 9 . 6 Power 5 | 2 2 . 1 Engine 3 | 2 . . 1 Core 2 | . 2 . . Reactor . | . . . . Propulsion 5 | 2 2 . 1 Treads 2 | 2 . . . Leg 3 | . 2 . 1 Wheel . | . . . . Hover . | . . . . Flight . | . . . . Utility 4 | 2 2 . . Device 2 | 1 1 . . Storage 2 | 1 1 . . Processor . | . . . . Hackware . | . . . . Protection . | . . . . Artifact . | . . . . Weapon 8 | 1 3 . 4 Energy Gun 1 | . 1 . . Energy Cannon . | . . . . Ballistic Gun 3 | 1 . . 2 Ballistic Cannon 4 | . 2 . 2 Launcher . | . . . . Special Weapon . | . . . . Impact Weapon . | . . . . Slashing Weapon . | . . . . Piercing Weapon . | . . . . Special Melee Weapon . | . . . . Unidentified Prototypes . | . . . . Parts Lost 14 | . 4 . 10 Power 3 | . . . 3 Propulsion 5 | . 2 . 3 Utility 1 | . 1 . . Weapon 5 | . 1 . 4 Highest Loss Streak 4 | . 3 . 4 To Critical Strikes . | . . . . Average Backups 9 | 1 8 15 13 Power 3 | . 3 5 4 Propulsion . | . . . . Utility 3 | . 2 5 5 Weapon 2 | . 2 5 4 Tool/Special . | . . . . Unused Backups 14 | . 5 . 9 Power 4 | . 1 . 3 Propulsion . | . . . . Utility 8 | . 3 . 5 Weapon 2 | . 1 . 1 Tool/Special . | . . . . Average Slot Usage (%) 89 | . 84 100 96 Engine 5 | . 1 . 11 Core 7 | . 12 14 1 Treads 7 | . 14 . . Leg 15 | . 7 28 25 Device 11 | . 9 14 14 Storage 14 | . 14 14 14 Energy Gun 1 | . 2 . . Ballistic Gun 2 | . 3 . . Ballistic Cannon 22 | . 18 28 27 Peak Build Rating 11 | 6 11 11 11 Average Rating 8 | 4 8 11 8 On Entrance 7 | . 6 11 11 Avg Prop Armor Cover (%) . | . . . . Naked Turns . | . . . . Heaviest Build 34 | 12 32 32 34 Greatest Support 40 | 40 40 20 20 Greatest Overweight (x) 11 | . 10 1 11 Average Overweight (x) . | . . 1 1 Largest Inventory Capacity 15 | 8 15 15 15 Average Capacity 12 | 7 12 15 15 Most Carried 15 | 2 15 15 15 Average Carried 9 | 1 8 15 13 Final Capacity 15 | 8 15 15 15 Final Carried 15 | 2 15 15 9 Class Distribution -------------------- 100% | Mutant Dominant Class ---------------- Mutant | -10/Materials Mutant | -10/Mines Mutant | -10/Subcaves Resources | -11 -10 -10 -10 ----------- Run | Yrd Mat Min Sub Matter Collected 810 | 300 239 . 271 Remotely . | . . . . Salvage Created 913 | 183 419 . 311 Parts 51 | 9 22 . 20 Haulers Intercepted 2 | . 2 . . Recyclers Shooed 2 | 1 1 . . Parts Field Recycled . | . . . . Retrieved Matter . | . . . . Parts Self-Destructed 10 | . . . 10 Prevented . | . . . . Parts Restored . | . . . . Kills | -11 -10 -10 -10 ------- Run | Yrd Mat Min Sub Combat Hostiles Destroyed 22 | . 10 . 12 Guns 8 | . 8 . . Cannons 14 | . 2 . 12 Classes Destroyed 8 | 2 4 . 2 Tunneler 4 | 4 . . . Hauler 2 | . 2 . . Recycler 1 | 1 . . . Operator 1 | . 1 . . Swarmer 6 | . 3 . 3 Grunt 9 | . 7 . 2 Sentry 1 | . . . 1 Subdweller 6 | . . . 6 Best Kill Streak 3 | 3 2 . 3 Combat Bots Only 3 | . 2 . 3 Max Kills in Single Turn 1 | 1 1 . 1 Gunslinging . | . . . . Exploded . | . . . . Melee . | . . . . Uniques/NPCs Destroyed . | . . . . Combat | -11 -10 -10 -10 -------- Run | Yrd Mat Min Sub Hostile Shots Fired 157 | . 64 . 93 Missed 41 | . 13 . 28 Hits 116 | . 51 . 65 Projectile 116 | . 51 . 65 Critical Strikes 4 | . 2 . 2 Damage Taken 1854 | . 615 . 1239 Core 261 | . 105 . 156 Absorbed by Shields . | . . . . Core Remaining (%) 100 | 100 . . . Volleys Fired 167 | 30 73 . 64 Largest 2 | 1 2 . 2 Hottest 85 | 20 85 . 60 Shots Fired 249 | 30 93 . 126 Gun 101 | 30 65 . 6 Cannon 148 | . 28 . 120 Launcher . | . . . . Special . | . . . . Kinetic 234 | 30 78 . 126 Thermal 15 | . 15 . . Explosive . | . . . . Electromagnetic . | . . . . Robot Hit Streak 23 | 8 17 . 23 Robot Miss Streak 5 | 2 5 . 3 Penetration Max . | . . . . Secondary Targets . | . . . . Shots Hit Robots 175 | 24 67 . 84 Core Hits 54 | 10 24 . 20 Critical Kills 1 | . 1 . . Critical Parts Destroyed . | . . . . Critical Strikes 3 | . 1 . 2 Destroy 1 | . 1 . . Blast 2 | . . . 2 Melee Attacks . | . . . . Impact . | . . . . Slashing . | . . . . Piercing . | . . . . Sneak Attacks . | . . . . Combat Hostiles . | . . . . Follow-up Attacks . | . . . . Damage Inflicted 1825 | 198 821 . 806 Guns 694 | 198 496 . . Cannons 1126 | . 320 . 806 Explosions . | . . . . Melee . | . . . . Ramming 5 | . 5 . . Kinetic 1621 | 198 617 . 806 Thermal 199 | . 199 . . Explosive . | . . . . Electromagnetic . | . . . . Impact . | . . . . Slashing . | . . . . Piercing . | . . . . Highest Corruption 1 | . 1 1 1 Average Corruption 1 | . 1 1 1 Corruption Purged . | . . . . Corruption Blocked . | . . . . Effects 15 | . 1 . 14 Message Errors 7 | . . . 7 Matter Fused 4 | . . . 4 Heat Flow Errors 1 | . . . 1 Energy Discharges 1 | . 1 . . Data Loss (minor) 1 | . . . 1 Misfires 1 | . . . 1 Overload Shots . | . . . . Overflow Damage . | . . . . Projectiles . | . . . . Explosions . | . . . . Melee . | . . . . Knockbacks 13 | . 1 . 12 Impact . | . . . . Kinetic 13 | . 1 . 12 Secondary . | . . . . Self-Inflicted Damage . | . . . . Shots . | . . . . Rammed 1 | . 1 . . Targets Rammed 2 | . 2 . . Kicked 1 | . 1 . . Crushed . | . . . . Highest Temperature 315 | . 315 . 86 Average Temperature 77 | . 77 . 47 Received Heat Transfer 441 | . 315 . 126 Siege Activations . | . . . . Martial Activations . | . . . . Shielding Activations . | . . . . Robots Disrupted . | . . . . Combat Hostiles . | . . . . Robots Corrupted . | . . . . Combat Hostiles . | . . . . Parts Fried . | . . . . Impact Corruptions . | . . . . Robots Melted . | . . . . Combat Hostiles . | . . . . Parts Melted . | . . . . Heat Transferred 481 | . 481 . . Parts Sabotaged . | . . . . Parts Stolen . | . . . . Parts Stripped . | . . . . Power Chain Reactions . | . . . . Alert | -11 -10 -10 -10 ------- Run | Yrd Mat Min Sub Maximum Alert Level . | . . . . Low Security (%) 100 | 100 100 100 . Level 1 . | . . . . Level 2 . | . . . . Level 3 . | . . . . Level 4 . | . . . . Level 5 . | . . . . High Security . | . . . . Max Security . | . . . . Peak Influence 115 | 10 115 4 . Initial 4 | . . 4 . Average 14 | . 17 1 . Influence Increases 576 | 25 346 . 205 Destroy 0b10 Robot/C 320 | . 200 . 120 Destroy 0b10 Robot/NC 40 | 25 15 . . Destroy Leader 54 | . 44 . 10 Successful Hack 11 | . 11 . . Disable Machine 15 | . 15 . . Destroy Structure 1 | . 1 . . Lose Combat Pursuer 135 | . 60 . 75 Influence Decreases 576 | 25 335 11 205 Entered New Map 7 | . . 7 . Time Decay 472 | 25 305 4 138 Lost Part 97 | . 30 . 67 Squads Dispatched . | . . . . Investigation . | . . . . Extermination . | . . . . Reinforcement . | . . . . Assault . | . . . . Garrison . | . . . . Intercept . | . . . . Searches Triggered . | . . . . Construction Impeded . | . . . . Haulers Reinforced . | . . . . Active Scanning Responses . | . . . . Cargo Convoy Interrupts . | . . . . Stealth | -11 -10 -10 -10 --------- Run | Yrd Mat Min Sub Distress Signals 2 | . 2 . . Communications Jammed . | . . . . Distress Signals . | . . . . Times Spotted 39 | . 24 . 15 Peak Tracking Total 4 | . 4 . 3 Tactical Retreats 5 | . 3 . 2 Traps | -11 -10 -10 -10 ------- Run | Yrd Mat Min Sub Traps Triggered 2 | . 1 . 1 Indirectly . | . . . . Trap Hack Attempts . | . . . . Triggered . | . . . . Disarmed . | . . . . Reprogrammed . | . . . . Reused . | . . . . Traps Extracted . | . . . . Installed . | . . . . Triggered . | . . . . Machines | -11 -10 -10 -10 ---------- Run | Yrd Mat Min Sub Machines Disabled 1 | . 1 . . Max in Single Turn 1 | . 1 . . Machines Repaired . | . . . . Machines Dismantled . | . . . . Machines Sabotaged . | . . . . Overloaded Fab Kills . | . . . . Hacking | -11 -10 -10 -10 --------- Run | Yrd Mat Min Sub Machines Accessed 5 | . 5 . . Terminals 5 | . 5 . . Fabricators . | . . . . Repair Stations . | . . . . Recycling Units . | . . . . Scanalyzers . | . . . . Garrison Access . | . . . . Total Hacks 11 | . 11 . . Successful 3 | . 3 . . Failed 8 | . 8 . . Catastrophic 1 | . 1 . . Database Lockouts . | . . . . Manual 10 | . 10 . . Terminals 11 | . 11 . . Fabricators . | . . . . Repair Stations . | . . . . Recycling Units . | . . . . Scanalyzers . | . . . . Garrison Access . | . . . . Terminal Hacks 3 | . 3 . . Robot Schematic 1 | . 1 . . Prototype ID Bank 1 | . 1 . . Terminal Index 1 | . 1 . . Fabricator Hacks . | . . . . Repair Station Hacks . | . . . . Recycling Unit Hacks . | . . . . Scanalyzer . | . . . . Garrison Access Hacks . | . . . . Unauthorized Hacks . | . . . . Terminals . | . . . . Fabricators . | . . . . Repair Stations . | . . . . Recycling Units . | . . . . Scanalyzers . | . . . . Garrison Access . | . . . . Data Cores Recovered 1 | . 1 . . Used . | . . . . Hacking Detections 5 | . 5 . . Full Trace Events . | . . . . Feedback Events . | . . . . Feedback Blocked . | . . . . Robot Schematics Acquired 1 | . 1 . . Robots Built . | . . . . Authchips . | . . . . Time . | . . . . Total Robot Build Rating . | . . . . Part Schematics Acquired . | . . . . Parts Built . | . . . . Authchips . | . . . . Time . | . . . . Total Part Build Rating . | . . . . Part Studies Acquired . | . . . . Parts Repaired . | . . . . Time . | . . . . Parts Recycled . | . . . . Recycled Matter . | . . . . Retrieved Matter . | . . . . Retrieved Components . | . . . . Parts Scanalyzed . | . . . . Part Schematics Acquired . | . . . . Parts Damaged . | . . . . Bothacking | -11 -10 -10 -10 ------------ Run | Yrd Mat Min Sub Used RIF Installer . | . . . . Robots Hacked . | . . . . Non-combat . | . . . . Combat . | . . . . Robot Hacks Applied . | . . . . Relay Couplers Released . | . . . . Fabnet Peak Effective % . | . . . . Robots Rewired . | . . . . Allies Hacked . | . . . . Hacks Repelled . | . . . . Allies | -11 -10 -10 -10 -------- Run | Yrd Mat Min Sub Total Allies . | . . . . Largest Group . | . . . . Highest-Rated Group . | . . . . Highest-Rated Ally . | . . . . Total Orders . | . . . . Ally Attacks . | . . . . Total Damage . | . . . . Kills . | . . . . Allies Corrupted . | . . . . Allies Melted . | . . . . Intel | -11 -10 -10 -10 ------- Run | Yrd Mat Min Sub Active Infowar (turns) 2942 | 57 1331 49 1505 Structural 2319 | . 765 49 1505 Seismic 623 | 57 566 . . Robot Analysis Total . | . . . . Derelict Logs Recovered . | . . . . Drone Launches . | . . . . Drone Recoveries . | . . . . Exploration | -11 -10 -10 -10 ------------- Run | Yrd Mat Min Sub Turns Passed 3865 | 318 1993 49 1505 Spaces Moved 1648 | 162 846 14 626 Core 13 | 5 6 . 2 Treads 742 | 157 585 . . Legs 893 | . 255 14 624 Wheels . | . . . . Hover . | . . . . Flight . | . . . . Fastest Speed 50 | 50 160 190 190 Average Speed 193 | 156 195 190 198 Slowest Speed 600 | 160 550 190 600 Overloaded Moves . | . . . . Propulsion Burnouts . | . . . . Robots Hopped . | . . . . Potential Cave-ins . | . . . . Cave-ins Triggered . | . . . . Exploration Rate (%) 36 | 9 89 7 39 Regions Visited 3 Branch Regions 2 Pre-discovered Areas . | . . . . Known Exits Taken . | . . . . Unknown Exits Taken 3 | 1 1 1 . Scrap Searched . | . . . . Spaces Dug . | . . . . Terrain Destroyed . | . . . . Melee . | . . . . Projectile . | . . . . AOE . | . . . . Terrain Rammed . | . . . . Walls Destroyed . | . . . . Machines Disabled . | . . . . Actions | -11 -10 -10 -10 --------- Run | Yrd Mat Min Sub Total 2101 | 199 1101 37 764 Wait 234 | . 143 24 67 Move 1645 | 161 845 13 626 Hop . | . . . . Pick Up 21 | 1 20 . . Fast Attach 12 | 6 5 . 1 Attach 7 | . 1 . 6 Detach 1 | . 1 . . Swap 4 | 1 3 . . Drop 8 | . 8 . . Fire 167 | 30 73 . 64 Melee . | . . . . Ram . | . . . . Kick 1 | . 1 . . Crush 1 | . 1 . . Escape Stasis . | . . . . Rewire . | . . . . Trap . | . . . . Miscellaneous . | . . . . Route ------- -11/Scrapyard -10/Materials (discovered 4 exits: [*Mat x3] / [*Min]) -10/Mines -10/Subcaves History --------- Turn | Location | Event 16 | -11/Scrapyard | Discovered new exit (range 15) 319 | -11/Scrapyard | Entered Materials 320 | -10/Materials | Build established: Mutant 920 | -10/Materials | Lost 3 parts (1n1u1w) 960 | -10/Materials | Discovered new exit (range 5) 1353 | -10/Materials | Discovered new exit (range 8) 1863 | -10/Materials | Discovered new exit (range 9) 2245 | -10/Materials | Discovered new exit (range 14) 2312 | -10/Materials | Entered Mines 2326 | -10/Mines | Discovered new exit (range 7) 2361 | -10/Mines | Entered Subcaves 2362 | -10/Subcaves | Approached by a straggling Scientist 3010 | -10/Subcaves | Core integrity fell below 50% 3671 | -10/Subcaves | Core integrity fell below 20% 3866 | -10/Subcaves | Destroyed by JS-YT9(R) with Subdweller Machine Gun Last Messages --------------- 03683_ 4P-6RT(R) knocked back. 03690_ Subatomizers dissect the Sub. Optics. 03695_ 4P-6RT(R) destroyed. 03703_ Acquired 3 matter. 03704_ System corrupted: Heat flow error (+131). 03711_ Subatomizers dissect the Sub. Optics. 03729_ Acquired 35 matter. 03736_ Subatomizers dissect the Sub. Optics. 03736_ Acquired 6 matter. 03746_ Subatomizers dissect the Sub. Optics. 03771_ System corrupted: FCS attempts to trigger Lgt. Cannon. 03771_ System corrupted: Lgt. Cannon misfires. 03795_ Subatomizers dissect the Sub. Power Source. 03814_ Aluminum Leg destroyed. 03829_ JS-YT9(R) knocked back. 03844_ Imp. Ion Engine destroyed. 03849_ Subatomizers dissect the Sub. Power Source. 03850_ Z1>&|KWXTVSQY4H8GEHAFQP,J2LMME448 03850_ Lgt. Cannon destroyed. 03864_ Subatomizers dissect the Sub. Power Source. Map ----- +----------------------------------------------------+ | ?????????????????????????????????????????????????? | | ?????????????????????????????????????????????????? | | ?????????????????????????????????????????????????? | | ?????????????????????????????????????????????????? | | ?????????????????????????????????????????????????? | | ?????????????????????? ??????????????????????????? | | ???????????????????## ?????????????????????? ???? | | ??????????????????### ????????????????##### ??? | | ??????????????????### ???????????????#### ??? | | ??????????????????## ????????????#### ???? | | ?????????????????### ###???########### ? #? | | ?????????????????### ################ ### | | ?????????????????## #######"## # # #### | | ????????????????###"""" #### ## #### | | ??????????????#####" " " " "" #### | | ?????????????? ###""""""% # ??# | | ?????????????? " """ & " "= #### ###??## | | ????????????? " """"& "% #####!###?### # | | ???????????????"##" * ##### %##?### ##### | | ???????????????### ##### !##### #### | | ????????????????## * ###### %###### ### | | ????????????????## " ! ### ### ## | | ????????????????### "" ### ### | | ????????????????######## % ## ### ## | | ?????????????????#######R ## "## #### ### | | ???????????????????#### @ %# "## ### | | ???????????????????###"" ###" ## # ### | | ??????????????????### " " # #""# # # ## | | ?????????????????### " "" """"# ### ###### | | ?????????????????## " #"#"""" ## ##### | | ?????????????????## ""#####""""""" ###### | | ????????????????### #####"""""""" ####### | | ????????????????## #######""""#### ####### | | ????????????????## #######?#################??### | | ????????????????#########????#######?########????? | | ????????????????#####????????????????????????????? | | ?????????????????????????????????????????????????? | | ?????????????????????????????????????????????????? | | ?????????????????????????????????????????????????? | | ?????????????????????????????????????????????????? | | ?????????????????????????????????????????????????? | | ?????????????????????????????????????????????????? | | ?????????????????????????????????????????????????? | | ?????????????????????????????????????????????????? | | ?????????????????????????????????????????????????? | | ?????????????????????????????????????????????????? | | ?????????????????????????????????????????????????? | | ?????????????????????????????????????????????????? | | ?????????????????????????????????????????????????? | | | +----------------------------------------------------+ Best States ------------- Heat Dissipation 25 Energy Generation 14 Energy Capacity 265 Matter Stores 300 Matter Capacity 300 Sight Range 16 Terrain Scan Density 10 Evasion (%) 40 Recoil Reduction 2 Item Schematics ----------------- None Robot Schematics ------------------ O-16 Technician | -10/Materials | Hacked Fabricated ------------ Nothing Repaired ---------- Nothing Studied --------- None Alien Tech Used ----------------- None Achievements -------------- None Challenges ------------ None Game ------ Seed SurveybotCloakMonowheel Manual? 0 Play Time 00:20:28 Cumulative 36.4 hours Start 2026.02.01 @ 20:59:41 End 2026.02.01 @ 21:15:35 Sessions 1 Manual Loads 0 Difficulty Rogue Special Mode None Game No. 77 Rogue 77 Adventurer 0 Explorer 0 Win Type - Total 0 Types 0/0/0/0/0/0/0/0/0/0 Lore% 17 Gallery% 24 Achievement% 20 Wizard Run 0 Options --------- Layout 0 ASCII 0 Keyboard 1 Movement Arrows Keybinds 0 Fullscreen 1 Font 18/Smallcaps Map View 38x25 Zoom Use 78% Tactical HUD 1 Map Filters NONE Filters NONE Steam 1 RUN: a4c054ab-be2d-44ca-9f98-78782eac2d89